Workbook

Sheet Contents
B1: REGULATORY REPORTING STATEMENT
B2: =dms_TradingName -> Australian Transmission Co.
B3: =CONCATENATE("Benchmarking RIN response ",CRY) -> Benchmarking RIN response 2014-15
B5: CONTENTS
B12: 3. ECONOMIC BENCHMARKING

Sheet Business & other details
A1: HIDE THIS COLUMN | C1: =(LOOKUP(dms_Model,dms_Model_List,dms_Worksheet_List)) -> REGULATORY REPORTING STATEMENT | L1: Data in these columns used for data validation and database purposes.
C2: =dms_TradingName -> Australian Transmission Co. | L2: Date last modified:
C3: =CONCATENATE("Economic Benchmarking RIN response ", CRY) -> Economic Benchmarking RIN response 2014-15 | L3: 14 April 2015 | M3: merged cell C46/47
C4: BUSINESS & OTHER DETAILS | L4: 17 April 2015 | M4: adjusted dms_RYE to automate based on dms_Model (NB: EB & CA refer to CRCP_y5)
L5: 14 May 2015 | M5: adapted this cover for use in CA & EB RINs
C7: Instructions
C8: Complete the following business details regulatory template before entering data or values in any other regulatory template. This regulatory template is linked to other cells within the spreadsheet and automatically generates column headings.
C10: SUBMISSION PARTICULARS INPUT SHEETS
C12: Entity details
C14: Trading name | D14: Australian Transmission Co.
C15: ACN / ABN | D15: =INDEX(dms_ABN_List,MATCH(dms_TradingName,dms_TradingName_List)) -> 11222333444
L17: dms_Model_List | M17: dms_Worksheet_List | O17: dms_RYE_List1 | P17: dms_RYE_List2
C18: Business address | D18: Address 1 | L18: CA | M18: REGULATORY REPORTING STATEMENT | O18: dms_RYE | P18: =CONCATENATE(LEFT(CRY, 2) &IF(CRY>"2009-10",,"") &RIGHT(CRY,2)) -> 2015
E19: Address 2 | L19: CAM/Service change Backcast | M19: REGULATORY REPORTING STATEMENT | O19: dms_RYE | P19: =CONCATENATE(LEFT(CRCP_y5, 2) &IF(CRCP_y5>"2009-10",,"") &RIGHT(CRCP_y5,2)) -> 2016
D20: Suburb | L20: CPI | M20: CPI | O20: dms_RYE | P20: =CONCATENATE(LEFT(CRCP_y5, 2) &IF(CRCP_y5>"2009-10",,"") &RIGHT(CRCP_y5,2)) -> 2016
E21: State | F21: =INDEX(dms_State_List,MATCH(dms_TradingName,dms_TradingName_List)) -> - | G21: p/code | L21: EB | M21: REGULATORY REPORTING STATEMENT | O21: dms_RYE | P21: =CONCATENATE(LEFT(CRY, 2) &IF(CRY>"2009-10",,"") &RIGHT(CRY,2)) -> 2015
L22: PTRM | M22: POST TAX REVENUE MODEL | O22: FRCP | P22: =CONCATENATE(LEFT(FRCP_y5, 2) &IF(FRCP_y1>"2009-10",,"") &RIGHT(FRCP_y5,2)) -> 2021
C23: Postal address | D23: Address 1 | L23: Reset | M23: REGULATORY REPORTING STATEMENT | O23: FRCP | P23: =CONCATENATE(LEFT(CRCP_y5, 2) &IF(CRCP_y5>"2009-10",,"") &RIGHT(CRCP_y5,2)) -> 2016
E24: Address 2 | L24: RFM | M24: ROLL FORWARD MODEL | O24: CRCP | P24: =CONCATENATE(LEFT(CRCP_y5, 2) &IF(CRCP_y1>"2009-10",,"") &RIGHT(CRCP_y5,2)) -> 2016
D25: Suburb | L25: WACC | M25: WEIGHTED AVERAGE COST OF CAPITAL | O25: dms_RYE | P25: =CONCATENATE(LEFT(CRCP_y5, 2) &IF(CRCP_y5>"2009-10",,"") &RIGHT(CRCP_y5,2)) -> 2016
E26: State | G26: p/code
L28: dms_TradingName_List | M28: dms_ABN_List | N28: dms_State_List | O28: dms_Sector_List | P28: dms_Segment_List | Q28: dms_FormControl | R28: dms_CRCPlength_List | S28: dms_FRCPlength_List | T28: dms_JurisdictionList
C29: Contact name/s | L29: ActewAGL Distribution | M29: 76670568688 | N29: ACT | O29: Electricity | P29: Distribution | Q29: Revenue cap | R29: 5 | S29: 6 | T29: ACT
C30: Contact phone/s | L30: ActewAGL Distribution (Tx Assets) | M30: 76670568688 | N30: ACT | O30: Electricity | P30: Distribution | Q30: Revenue cap | R30: 5 | S30: 5 | T30: ACT
C31: Contact email address/s | L31: AGN | M31: 78551685 | N31: SA | O31: Gas | P31: Distribution | Q31: Revenue cap | R31: 5 | S31: 5 | T31: SA
L32: Ausgrid | M32: 67505337385 | N32: NSW | O32: Electricity | P32: Distribution | Q32: Revenue cap | R32: 5 | S32: 5 | T32: NSW
A33: KEEP VISIBLE FOR RESET, PTRM & RFMS | C33: Regulatory control period details | L33: Ausgrid (Tx Assets) | M33: 67505337385 | N33: NSW | O33: Electricity | P33: Distribution | Q33: Revenue cap | R33: 5 | S33: 5 | T33: NSW
L34: AusNet (D) | M34: 91064651118 | N34: Vic | O34: Electricity | P34: Distribution | Q34: Revenue cap | R34: 5 | S34: 5 | T34: Vic
C35: Forthcoming regulatory control period | D35: =CONCATENATE(IF(dms_RPT="Calendar",CRCP_y5+1,(LEFT(CRCP_y5,4)+1&"-"&IF(MID(CRCP_y5,6,2)<"09","0"&RIGHT(CRCP_y5,1)+1,RIGHT(CRCP_y5,2)+1)))) -> 2016-17 | E35: =CONCATENATE(IF(dms_RPT="Calendar",FRCP_y1+1,(LEFT(FRCP_y1,4)+1&"-"&IF(MID(FRCP_y1,6,2)<"09","0"&RIGHT(FRCP_y1,1)+1,RIGHT(FRCP_y1,2)+1)))) -> 2017-18 | F35: =CONCATENATE(IF(dms_RPT="Calendar",FRCP_y2+1,(LEFT(FRCP_y2,4)+1&"-"&IF(MID(FRCP_y2,6,2)<"09","0"&RIGHT(FRCP_y2,1)+1,RIGHT(FRCP_y2,2)+1)))) -> 2018-19 | G35: =CONCATENATE(IF(dms_RPT="Calendar",FRCP_y3+1,(LEFT(FRCP_y3,4)+1&"-"&IF(MID(FRCP_y3,6,2)<"09","0"&RIGHT(FRCP_y3,1)+1,RIGHT(FRCP_y3,2)+1)))) -> 2019-20 | H35: =CONCATENATE(IF(dms_RPT="Calendar",FRCP_y4+1,(LEFT(FRCP_y4,4)+1&"-"&IF(MID(FRCP_y4,6,2)<"09","0"&RIGHT(FRCP_y4,1)+1,RIGHT(FRCP_y4,2)+1)))) -> 2020-21 | L35: AusNet (T) | M35: 78079798173 | N35: Vic | O35: Electricity | P35: Transmission | Q35: Revenue cap | R35: 5 | S35: 5 | T35: Vic
L36: Australian Distribution Co. | M36: 11222333444 | N36: - | O36: Electricity | P36: Distribution | Q36: Revenue cap | R36: 5 | S36: 5 | T36: -
L37: Australian Transmission Co. | M37: 11222333444 | N37: - | O37: Electricity | P37: Transmission | Q37: Revenue cap | R37: 5 | S37: 5 | T37: -
C38: Current regulatory control period | D38: 2011-12 | E38: =CONCATENATE(IF(dms_RPT="Calendar",CRCP_y1+1,(LEFT(CRCP_y1,4)+1&"-"&IF(MID(CRCP_y1,6,2)<"09","0"&RIGHT(CRCP_y1,1)+1,RIGHT(CRCP_y1,2)+1)))) -> 2012-13 | F38: =CONCATENATE(IF(dms_RPT="Calendar",CRCP_y2+1,(LEFT(CRCP_y2,4)+1&"-"&IF(MID(CRCP_y2,6,2)<"09","0"&RIGHT(CRCP_y2,1)+1,RIGHT(CRCP_y2,2)+1)))) -> 2013-14 | G38: =CONCATENATE(IF(dms_RPT="Calendar",CRCP_y3+1,(LEFT(CRCP_y3,4)+1&"-"&IF(MID(CRCP_y3,6,2)<"09","0"&RIGHT(CRCP_y3,1)+1,RIGHT(CRCP_y3,2)+1)))) -> 2014-15 | H38: =CONCATENATE(IF(dms_RPT="Calendar",CRCP_y4+1,(LEFT(CRCP_y4,4)+1&"-"&IF(MID(CRCP_y4,6,2)<"09","0"&RIGHT(CRCP_y4,1)+1,RIGHT(CRCP_y4,2)+1)))) -> 2015-16 | L38: CitiPower | M38: 76064651056 | N38: Vic | O38: Electricity | P38: Distribution | Q38: Revenue cap | R38: 5 | S38: 5 | T38: Vic
L39: Directlink | M39: 16779340889 | N39: NSW | O39: Electricity | P39: Transmission | Q39: Revenue cap | R39: 10 | S39: 5 | T39: Qld
L40: ElectraNet | M40: 41094482416 | N40: SA | O40: Electricity | P40: Transmission | Q40: Revenue cap | R40: 5 | S40: 5 | T40: SA
C41: Previous regulatory control period | D41: =CONCATENATE(IF(dms_RPT="Calendar",PRCP_y2-1,(LEFT(PRCP_y2,4)-1&"-"&IF(MID(PRCP_y2,3,1)="0","0"&RIGHT(PRCP_y2,2)-1,RIGHT(PRCP_y2,2)-1)))) -> 2006-07 | E41: =CONCATENATE(IF(dms_RPT="Calendar",PRCP_y3-1,(LEFT(PRCP_y3,4)-1&"-"&IF(MID(PRCP_y3,3,1)="0","0"&RIGHT(PRCP_y3,2)-1,RIGHT(PRCP_y3,2)-1)))) -> 2007-08 | F41: =CONCATENATE(IF(dms_RPT="Calendar",PRCP_y4-1,(LEFT(PRCP_y4,4)-1&"-"&IF(MID(PRCP_y4,3,1)="0","0"&RIGHT(PRCP_y4,2)-1,RIGHT(PRCP_y4,2)-1)))) -> 2008-09 | G41: =CONCATENATE(IF(dms_RPT="Calendar",PRCP_y5-1,(LEFT(PRCP_y5,4)-1&"-"&IF(MID(PRCP_y5,3,1)="0","0"&RIGHT(PRCP_y5,2)-1,RIGHT(PRCP_y5,2)-1)))) -> 2009-10 | H41: =CONCATENATE(IF(dms_RPT="Calendar",CRCP_y1-1,(LEFT(CRCP_y1,4)-1&"-"&IF(MID(CRCP_y1,3,1)="0","0"&RIGHT(CRCP_y1,2)-1,RIGHT(CRCP_y1,2)-1)))) -> 2010-11 | L41: Endeavour Energy | M41: 59253130878 | N41: NSW | O41: Electricity | P41: Distribution | Q41: Revenue cap | R41: 5 | S41: 5 | T41: NSW
L42: Energex | M42: 40078849055 | N42: Qld | O42: Electricity | P42: Distribution | Q42: Revenue cap | R42: 5 | S42: 5 | T42: Qld
L43: Ergon Energy | M43: 50087646062 | N43: Qld | O43: Electricity | P43: Distribution | Q43: Revenue cap | R43: 5 | S43: 5 | T43: Qld
A44: KEEP VISIBLE FOR CA & EB ONLY | L44: Essential Energy | M44: 37428185226 | N44: NSW | O44: Electricity | P44: Distribution | Q44: Revenue cap | R44: 5 | S44: 5 | T44: NSW
C45: Current regulatory year | D45: 2014-15 | L45: Jemena Electricity | M45: 82064651083 | N45: Vic | O45: Electricity | P45: Distribution | Q45: Revenue cap | R45: 5 | S45: 5 | T45: Vic
L46: Murraylink | M46: 79181207909 | N46: NSW | O46: Electricity | P46: Transmission | Q46: Revenue cap | R46: 5 | S46: 5 | T46: SA
L47: Powercor Australia | M47: 89064651109 | N47: Vic | O47: Electricity | P47: Distribution | Q47: Revenue cap | R47: 5 | S47: 5 | T47: Vic
L48: Powerlink | M48: 82078849233 | N48: Qld | O48: Electricity | P48: Transmission | Q48: Revenue cap | R48: 5 | S48: 5 | T48: Qld
L49: Qld,SA &ACT Gas Reset | M49: 22222222222 | N49: - | O49: Gas | P49: Distribution | Q49: ? | R49: 5 | S49: 5 | T49: -
C50: Sector | D50: =INDEX(dms_Sector_List,MATCH(dms_TradingName,dms_TradingName_List)) -> Electricity | L50: SA Power Networks | M50: 13332330749 | N50: SA | O50: Electricity | P50: Distribution | Q50: Revenue cap | R50: 5 | S50: 5 | T50: SA
C51: Segment | D51: =INDEX(dms_Segment_List,MATCH(dms_TradingName,dms_TradingName_List)) -> Transmission | L51: TasNetworks (D) | M51: 24167357299 | N51: Tas | O51: Electricity | P51: Distribution | Q51: Revenue cap | R51: 5 | S51: 5 | T51: Tas
C52: Source | D52: Reporting | L52: TasNetworks (T) | M52: 24167357299 | N52: Tas | O52: Electricity | P52: Transmission | Q52: Revenue cap | R52: 5 | S52: 5 | T52: Tas
C53: Regulatory Year Ending | D53: =(LOOKUP(dms_Model,dms_Model_List,dms_RYE_List2)) -> 2015 | L53: TransGrid | M53: 19622755774 | N53: NSW | O53: Electricity | P53: Transmission | Q53: Revenue cap | R53: 5 | S53: 5 | T53: NSW
C54: Reporting Period Type | D54: =IF(LEN(CRCP_y1)>4,"Financial","Calendar") -> Financial | L54: United Energy | M54: 70064651029 | N54: Vic | O54: Electricity | P54: Distribution | Q54: Revenue cap | R54: 5 | S54: 5 | T54: Vic
C55: Model or RIN Type | D55: EB | L55: Victorian DNSP Backcasting | M55: 33333333666 | N55: Vic | O55: Electricity | P55: Distribution | Q55: ? | R55: 5 | S55: 5 | T55: Vic
C56: Security Classification | D56: =IF(dms_DataQuality="Public","Public","Confidential") -> Confidential | L56: Victorian DNSP Reset | M56: 33333333333 | N56: Vic | O56: Electricity | P56: Distribution | Q56: ? | R56: 5 | S56: 5 | T56: Vic
C57: Data quality (actual, estimate, public, consolidated) | D57: Consolidated
C58: EBSS - First application of scheme in forthcoming period? | D58: No
C59: Amended RIN submission - amendment reason | D59: Revised EB to bring into line with an amended Reset RIN
A60: HIDE THESE ROWS | C60: Template - version no. | D60: 1
C61: Dollar $ real (the last month before the FRCP_y1) | D61: =CONCATENATE(IF(dms_RPT="Financial","June ","December "),(dms_RYE)) -> June 2015 | L61: dms_SourceList | M61: dms_FormControl
C62: Form of control | D62: =INDEX(dms_FormControl_List,MATCH(dms_TradingName,dms_TradingName_List)) -> Revenue cap | L62: After appeal | M62: Revenue cap
C63: Length of current reg control period | D63: =INDEX(dms_CRCPlength_List,MATCH(dms_TradingName,dms_TradingName_List)) -> 5 | L63: Draft decision | M63: Revenue yield
C64: Length of forthcoming reg control period | D64: =INDEX(dms_FRCPlength_List,MATCH(dms_TradingName,dms_TradingName_List)) -> 5 | L64: Final decision | M64: Weighted average price cap
C65: RIN response - version no. | D65: 1 | L65: Pass through decision
C66: Jurisdiction | D66: =INDEX(dms_JurisdictionList,MATCH(dms_TradingName,dms_TradingName_List)) -> - | L66: PTRM annual update
L67: PTRM interim update 1
L68: PTRM interim update 2
L69: PTRM interim update 3
L70: PTRM interim update 4
L71: Regulatory proposal
L72: Reporting
L73: Revised regulatory proposal
L74: RFM annual update
L75: WACC annual update
L79: Notes
L80: RFM - Base year is usually CRCP_y1 | M80: EG. Victorian 2016-20 - base year = 2011
L81: RFM - Form of Control Field is not relevant
L82: PTRM - capture base year input by NSP | M82: ='[Published version - PTRM - TNSP - version 3 - January 2015 - Appendix A.xlsm]PTRM input'!Q7

Sheet 3.1 Revenue
C1: =(LOOKUP(dms_Model,dms_Model_List,dms_Worksheet_List)) -> REGULATORY REPORTING STATEMENT
C2: =dms_TradingName -> Australian Transmission Co.
C3: =CONCATENATE("Economic Benchmarking RIN response ", CRY) -> Economic Benchmarking RIN response 2014-15
C4: 3.1 REVENUE
E7: Actual ($0's)
E8: =CRY -> 2014-15
C10: TABLE 3.1.1 REVENUE GROUPING BY CHARGEABLE QUANTITY
A11: ET_REV3110_00001 | B11: TREV0101 | C11: From Fixed Customer (Exit Point) Charges | E11: 96161179.45
A12: ET_REV3110_00002 | B12: TREV0102 | C12: From Variable Customer (Exit Point) Charges | E12: 0
A13: ET_REV3110_00003 | B13: TREV0103 | C13: From Fixed Generator (Entry Point) Charges | E13: 7977000
A14: ET_REV3110_00004 | B14: TREV0104 | C14: From Variable Generator (Entry Point) Charges | E14: 0
A15: ET_REV3110_00005 | B15: TREV0105 | C15: From Fixed Energy Usage Charges (Charge per day basis) | E15: 182048446.2
A16: ET_REV3110_00006 | B16: TREV0106 | C16: From Variable Energy Usage charges (Charge per kWh basis) | E16: 88676503.46
A17: ET_REV3110_00007 | B17: TREV0107 | C17: From Energy based Common Service and General Charges | E17: 399058304.4
A18: ET_REV3110_00008 | B18: TREV0108 | C18: From Fixed Demand based Usage Charges | E18: 36967781
A19: ET_REV3110_00009 | B19: TREV0109 | C19: From Variable Demand based Usage Charges | E19: 7494746.61
A20: ET_REV3110_00010 | B20: TREV0110 | C20: Revenue from other Sources | E20: 137873739.4
B21: TREV01 | C21: Total revenue by chargeable quantity | D21: $0's | E21: =SUM(E11:E20) -> 956257700.5
C24: TABLE 3.1.2 REVENUE GROUPING BY TYPE OF CONNECTED EQUIPMENT
A25: ET_REV3120_00001 | B25: TREV0201 | C25: From Other connected transmission networks | E25: 0
A26: ET_REV3120_00002 | B26: TREV0202 | C26: From Distribution networks | E26: 695645101.4
A27: ET_REV3120_00003 | B27: TREV0203 | C27: From Directly connected end–users | E27: 114761859.7
A28: ET_REV3120_00004 | B28: TREV0204 | C28: From Generators | E28: 7977000
A29: ET_REV3120_00005 | B29: TREV0205 | C29: Other revenue | E29: 137873739.4
B30: TREV02 | C30: Total revenue by type of connected equipment | D30: $0's | E30: =SUM(E25:E29) -> 956257700.5
H32: `
C33: TABLE 3.1.3 REVENUE (penalties) ALLOWED (deducted) THROUGH INCENTIVE SCHEMES
A34: ET_REV3130_00001 | B34: TREV0301 | C34: EBSS | E34: -2932859.52
A35: ET_REV3130_00002 | B35: TREV0302 | C35: STPIS | E35: 20657815
A36: ET_REV3130_00003 | B36: TREV0303 | C36: Other | E36: 0
B37: TREV03 | C37: Total revenue of incentive schemes | D37: $0's | E37: =SUM(E34:E36) -> 17724955.48

Sheet 3.2 Operating expenditure
C1: REGULATORY REPORTING STATEMENT
C2: =dms_TradingName -> Australian Transmission Co.
C3: =CONCATENATE("Benchmarking RIN response ",CRY) -> Benchmarking RIN response 2014-15
C4: 3.2 OPERATING EXPENDITURE
C7: Instructions
C8: =CONCATENATE(dms_TradingName, " must fill in opex in table 3.2.1 for opex categories reported in response to its annual reporting RIN.") -> Australian Transmission Co. must fill in opex in table 3.2.1 for opex categories reported in response to its annual reporting RIN.
E13: Actual ($0's)
A14: ET_OPX3211 | E14: =CRY -> 2014-15
C16: TABLE 3.2.1 - OPEX CATEGORIES
C18: Table 3.2.1.1 Current opex categories and cost allocations
A19: ET_OPX3211_00001 | B19: TOPEX0101 | C19: Field Maintenance - Routine | E19: 23777725.3
A20: ET_OPX3211_00002 | B20: TOPEX0102 | C20: Field Maintenance - Condition-based | E20: 24814083.6
A21: ET_OPX3211_00003 | B21: TOPEX0103 | C21: Field Maintenance - Corrective | E21: 15584853.04
A22: ET_OPX3211_00004 | B22: TOPEX0104 | C22: Maintenance Support | E22: 12687229.07
A23: ET_OPX3211_00005 | B23: TOPEX0105 | C23: Refurbishment | E23: 37504950.41
A24: ET_OPX3211_00006 | B24: TOPEX0106 | C24: Insurance Premiums | E24: 6668626
A25: ET_OPX3211_00007 | B25: TOPEX0107 | C25: Self Insurance | E25: 1704437.81
A26: ET_OPX3211_00008 | B26: TOPEX0108 | C26: Network Operations | E26: 15160197.83
A27: ET_OPX3211_00009 | B27: TOPEX0109 | C27: Asset Management Support | E27: 34175018.45
A28: ET_OPX3211_00010 | B28: TOPEX0110 | C28: Corporate Support | E28: 18839396.12
A29: ET_OPX3211_00011 | B29: TOPEX0111 | C29: AEMC Levy | E29: 3790000
A30: ET_OPX3211_00012 | B30: TOPEX0112 | C30: Project 500kV - write-off | E30: 12053999.38
A31: ET_OPX3211_00013 | B31: TOPEX0113 | C31: Revenue Reset | E31: 1356031.1
A32: ET_OPX3211_00014 | B32: TOPEX0114 | C32: Debt Management Costs | E32: 500000
A33: ET_OPX3211_00015 | B33: TOPEX0115 | C33: Grid Support | E33: 2644445.55
A34: ET_OPX3211_00016 | B34: TOPEX0116
A35: ET_OPX3211_00017 | B35: TOPEX0117
A36: ET_OPX3211_00018 | B36: TOPEX0118
A37: ET_OPX3211_00019 | B37: TOPEX0119
A38: ET_OPX3211_00020 | B38: TOPEX0120
A39: ET_OPX3211_00021 | B39: TOPEX0121
A40: ET_OPX3211_00022 | B40: TOPEX0122
A41: ET_OPX3211_00023 | B41: TOPEX0123
A42: ET_OPX3211_00024 | B42: TOPEX0124
A43: ET_OPX3211_00025 | B43: TOPEX0125
A44: ET_OPX3211_00026 | B44: TOPEX0126
A45: ET_OPX3211_00027 | B45: TOPEX0127
A46: ET_OPX3211_00028 | B46: TOPEX0128
A47: ET_OPX3211_00029 | B47: TOPEX0129
A48: ET_OPX3211_00030 | B48: TOPEX0130
A49: ET_OPX3211_00031 | B49: TOPEX0131
A50: ET_OPX3211_00032 | B50: TOPEX0132
A51: ET_OPX3211_00033 | B51: TOPEX0133
A52: ET_OPX3211_00034 | B52: TOPEX0134
A53: ET_OPX3211_00035 | B53: TOPEX0135
A54: ET_OPX3211_00036 | B54: TOPEX0136
A55: ET_OPX3211_00037 | B55: TOPEX0137
A56: ET_OPX3211_00038 | B56: TOPEX0138
A57: ET_OPX3211_00039 | B57: TOPEX0139
A58: ET_OPX3211_00040 | B58: TOPEX0140
A59: ET_OPX3211_00041 | B59: TOPEX0141
B60: TOPEX01 | C60: Total opex | D60: ($0's) | E60: =SUM(E19:E59) -> 211260993.7
A62: ET_OPX3211A | C62: Table 3.2.1.2A - Historical opex categories and cost allocations | E62: =CRY -> 2014-15
A63: ET_OPX3211A_00001 | B63: TOPEX0101A | C63: Field Maintenance - Routine | E63: 23777725.3
A64: ET_OPX3211A_00002 | B64: TOPEX0102A | C64: Field Maintenance - Condition-based | E64: 24814083.6
A65: ET_OPX3211A_00003 | B65: TOPEX0103A | C65: Field Maintenance - Corrective | E65: 15584853.04
A66: ET_OPX3211A_00004 | B66: TOPEX0104A | C66: Maintenance Support | E66: 12687229.07
A67: ET_OPX3211A_00005 | B67: TOPEX0105A | C67: Refurbishment | E67: 37504950.41
A68: ET_OPX3211A_00006 | B68: TOPEX0106A | C68: Insurance Premiums | E68: 6668626
A69: ET_OPX3211A_00007 | B69: TOPEX0107A | C69: Self Insurance | E69: 1704437.81
A70: ET_OPX3211A_00008 | B70: TOPEX0108A | C70: Network Operations | E70: 15160197.83
A71: ET_OPX3211A_00009 | B71: TOPEX0109A | C71: Asset Management Support | E71: 34175018.45
A72: ET_OPX3211A_00010 | B72: TOPEX0110A | C72: Corporate Support | E72: 18839396.12
A73: ET_OPX3211A_00011 | B73: TOPEX0111A | C73: AEMC Levy | E73: 3790000
A74: ET_OPX3211A_00012 | B74: TOPEX0112A | C74: Project 500kV - write-off | E74: 12053999.38
A75: ET_OPX3211A_00013 | B75: TOPEX0113A | C75: Revenue Reset | E75: 1356031.1
A76: ET_OPX3211A_00014 | B76: TOPEX0114A | C76: Debt Management Costs | E76: 500000
A77: ET_OPX3211A_00015 | B77: TOPEX0115A | C77: Grid Support | E77: 2644445.55
A78: ET_OPX3211A_00016 | B78: TOPEX0116A
A79: ET_OPX3211A_00017 | B79: TOPEX0117A
A80: ET_OPX3211A_00018 | B80: TOPEX0118A
A81: ET_OPX3211A_00019 | B81: TOPEX0119A
A82: ET_OPX3211A_00020 | B82: TOPEX0120A
A83: ET_OPX3211A_00021 | B83: TOPEX0121A
A84: ET_OPX3211A_00022 | B84: TOPEX0122A
A85: ET_OPX3211A_00023 | B85: TOPEX0123A
A86: ET_OPX3211A_00024 | B86: TOPEX0124A
A87: ET_OPX3211A_00025 | B87: TOPEX0125A
A88: ET_OPX3211A_00026 | B88: TOPEX0126A
A89: ET_OPX3211A_00027 | B89: TOPEX0127A
A90: ET_OPX3211A_00028 | B90: TOPEX0128A
A91: ET_OPX3211A_00029 | B91: TOPEX0129A
A92: ET_OPX3211A_00030 | B92: TOPEX0130A
A93: ET_OPX3211A_00031 | B93: TOPEX0131A
A94: ET_OPX3211A_00032 | B94: TOPEX0132A
A95: ET_OPX3211A_00033 | B95: TOPEX0133A
A96: ET_OPX3211A_00034 | B96: TOPEX0134A
A97: ET_OPX3211A_00035 | B97: TOPEX0135A
A98: ET_OPX3211A_00036 | B98: TOPEX0136A
A99: ET_OPX3211A_00037 | B99: TOPEX0137A
A100: ET_OPX3211A_00038 | B100: TOPEX0138A
A101: ET_OPX3211A_00039 | B101: TOPEX0139A
A102: ET_OPX3211A_00040 | B102: TOPEX0140A
A103: ET_OPX3211A_00041 | B103: TOPEX0141A
A104: ET_OPX3211A_00042 | B104: TOPEX0142A
B105: TOPEX01A | C105: Total opex | D105: ($0's) | E105: =SUM(E63:E104) -> 211260993.7
A107: ET_OPX3211B | C107: Table 3.2.1.2B - Historical opex categories and cost allocations | E107: =CRY -> 2014-15
A108: ET_OPX3211B_00001 | B108: TOPEX0101B
A109: ET_OPX3211B_00002 | B109: TOPEX0102B
A110: ET_OPX3211B_00003 | B110: TOPEX0103B
A111: ET_OPX3211B_00004 | B111: TOPEX0104B
A112: ET_OPX3211B_00005 | B112: TOPEX0105B
A113: ET_OPX3211B_00006 | B113: TOPEX0106B
A114: ET_OPX3211B_00007 | B114: TOPEX0107B
A115: ET_OPX3211B_00008 | B115: TOPEX0108B
A116: ET_OPX3211B_00009 | B116: TOPEX0109B
A117: ET_OPX3211B_00010 | B117: TOPEX0110B
A118: ET_OPX3211B_00011 | B118: TOPEX0111B
A119: ET_OPX3211B_00012 | B119: TOPEX0112B
A120: ET_OPX3211B_00013 | B120: TOPEX0113B
A121: ET_OPX3211B_00014 | B121: TOPEX0114B
A122: ET_OPX3211B_00015 | B122: TOPEX0115B
A123: ET_OPX3211B_00016 | B123: TOPEX0116B
A124: ET_OPX3211B_00017 | B124: TOPEX0117B
A125: ET_OPX3211B_00018 | B125: TOPEX0118B
A126: ET_OPX3211B_00019 | B126: TOPEX0119B
A127: ET_OPX3211B_00020 | B127: TOPEX0120B
A128: ET_OPX3211B_00021 | B128: TOPEX0121B
A129: ET_OPX3211B_00022 | B129: TOPEX0122B
A130: ET_OPX3211B_00023 | B130: TOPEX0123B
A131: ET_OPX3211B_00024 | B131: TOPEX0124B
A132: ET_OPX3211B_00025 | B132: TOPEX0125B
A133: ET_OPX3211B_00026 | B133: TOPEX0126B
A134: ET_OPX3211B_00027 | B134: TOPEX0127B
A135: ET_OPX3211B_00028 | B135: TOPEX0128B
A136: ET_OPX3211B_00029 | B136: TOPEX0129B
A137: ET_OPX3211B_00030 | B137: TOPEX0130B
A138: ET_OPX3211B_00031 | B138: TOPEX0131B
A139: ET_OPX3211B_00032 | B139: TOPEX0132B
A140: ET_OPX3211B_00033 | B140: TOPEX0133B
A141: ET_OPX3211B_00034 | B141: TOPEX0134B
A142: ET_OPX3211B_00035 | B142: TOPEX0135B
A143: ET_OPX3211B_00036 | B143: TOPEX0136B
A144: ET_OPX3211B_00037 | B144: TOPEX0137B
A145: ET_OPX3211B_00038 | B145: TOPEX0138B
A146: ET_OPX3211B_00039 | B146: TOPEX0139B
A147: ET_OPX3211B_00040 | B147: TOPEX0140B
A148: ET_OPX3211B_00041 | B148: TOPEX0141B
A149: ET_OPX3211B_00042 | B149: TOPEX0142B
B150: TOPEX01B | C150: Total opex | D150: ($0's) | E150: =SUM(E108:E149) -> 0
A152: ET_OPX3211C | C152: Table 3.2.1.2C - Historical opex categories and cost allocations | E152: =CRY -> 2014-15
A153: ET_OPX3211C_00001 | B153: TOPEX0101C
A154: ET_OPX3211C_00002 | B154: TOPEX0102C
A155: ET_OPX3211C_00003 | B155: TOPEX0103C
A156: ET_OPX3211C_00004 | B156: TOPEX0104C
A157: ET_OPX3211C_00005 | B157: TOPEX0105C
A158: ET_OPX3211C_00006 | B158: TOPEX0106C
A159: ET_OPX3211C_00007 | B159: TOPEX0107C
A160: ET_OPX3211C_00008 | B160: TOPEX0108C
A161: ET_OPX3211C_00009 | B161: TOPEX0109C
A162: ET_OPX3211C_00010 | B162: TOPEX0110C
A163: ET_OPX3211C_00011 | B163: TOPEX0111C
A164: ET_OPX3211C_00012 | B164: TOPEX0112C
A165: ET_OPX3211C_00013 | B165: TOPEX0113C
A166: ET_OPX3211C_00014 | B166: TOPEX0114C
A167: ET_OPX3211C_00015 | B167: TOPEX0115C
A168: ET_OPX3211C_00016 | B168: TOPEX0116C
A169: ET_OPX3211C_00017 | B169: TOPEX0117C
A170: ET_OPX3211C_00018 | B170: TOPEX0118C
A171: ET_OPX3211C_00019 | B171: TOPEX0119C
A172: ET_OPX3211C_00020 | B172: TOPEX0120C
A173: ET_OPX3211C_00021 | B173: TOPEX0121C
A174: ET_OPX3211C_00022 | B174: TOPEX0122C
A175: ET_OPX3211C_00023 | B175: TOPEX0123C
A176: ET_OPX3211C_00024 | B176: TOPEX0124C
A177: ET_OPX3211C_00025 | B177: TOPEX0125C
A178: ET_OPX3211C_00026 | B178: TOPEX0126C
A179: ET_OPX3211C_00027 | B179: TOPEX0127C
A180: ET_OPX3211C_00028 | B180: TOPEX0128C
A181: ET_OPX3211C_00029 | B181: TOPEX0129C
A182: ET_OPX3211C_00030 | B182: TOPEX0130C
A183: ET_OPX3211C_00031 | B183: TOPEX0131C
A184: ET_OPX3211C_00032 | B184: TOPEX0132C
A185: ET_OPX3211C_00033 | B185: TOPEX0133C
A186: ET_OPX3211C_00034 | B186: TOPEX0134C
A187: ET_OPX3211C_00035 | B187: TOPEX0135C
A188: ET_OPX3211C_00036 | B188: TOPEX0136C
A189: ET_OPX3211C_00037 | B189: TOPEX0137C
A190: ET_OPX3211C_00038 | B190: TOPEX0138C
A191: ET_OPX3211C_00039 | B191: TOPEX0139C
A192: ET_OPX3211C_00040 | B192: TOPEX0140C
A193: ET_OPX3211C_00041 | B193: TOPEX0141C
A194: ET_OPX3211C_00042 | B194: TOPEX0142C
B195: TOPEX01C | C195: Total opex | D195: ($0's) | E195: =SUM(E153:E194) -> 0

Sheet 3.2.3 Provisions
C1: REGULATORY REPORTING STATEMENT
C2: =dms_TradingName -> Australian Transmission Co.
C3: =CONCATENATE("Benchmarking RIN response ",CRY) -> Benchmarking RIN response 2014-15
C4: 3.2 OPERATING EXPENDITURE
C7: Instructions
C8: =CONCATENATE(TradingName, " must fill in opex in table 3.2.3 for opex categories reported in response to its annual reporting RIN.") -> 
C10: TABLE 3.2.3 - PROVISIONS
C11: For each provision report:
E12: $0's
E13: =CRY -> 2014-15
B15: TOPEX03A | C15: Other Provision
C16: Provision for Powerlinks restructure activities.
B17: TOPEX0301A | C17: Opening balance (the carrying amount at the beginning of the period) | E17: 991001
C18: Additional provisions made in the period, including increases to existing provisions
B19: TOPEX0302A | C19: Opex component | E19: 178036
B20: TOPEX0303A | C20: Capex component | E20: 0
B21: TOPEX0304A | C21: Other component | E21: 0
C22: Amounts used (that is, incurred and charged against the provision) during the period
B23: TOPEX0305A | C23: Opex component | E23: -991001
B24: TOPEX0306A | C24: Capex component | E24: 0
B25: TOPEX0307A | C25: Other component | E25: 0
C26: Unused amounts reversed during the period
B27: TOPEX0308A | C27: Opex component | E27: 0
B28: TOPEX0309A | C28: Capex component | E28: 0
B29: TOPEX0310A | C29: Other component | E29: 0
C30: The increase during the period in the discounted amount arising from the passage of time and the effect of any change in the discount rate
B31: TOPEX0311A | C31: Opex component | E31: 0
B32: TOPEX0312A | C32: Capex component | E32: 0
B33: TOPEX0313A | C33: Other component | E33: 0
B34: TOPEX0314A | C34: Closing balance (carrying amount at the end of the period) | E34: 178036
B35: TOPEX03B | C35: Employee Entitlements
C36: Employee Annual and Long Service leave Liability
B37: TOPEX0301B | C37: Opening balance (the carrying amount at the beginning of the period) | E37: 31436206.67
C38: Additional provisions made in the period, including increases to existing provisions
B39: TOPEX0302B | C39: Opex component | E39: 5966260.287
B40: TOPEX0303B | C40: Capex component | E40: 4644805.523
B41: TOPEX0304B | C41: Other component | E41: 0
C42: Amounts used (that is, incurred and charged against the provision) during the period
B43: TOPEX0305B | C43: Opex component | E43: -6291063.837
B44: TOPEX0306B | C44: Capex component | E44: -4897669
B45: TOPEX0307B | C45: Other component | E45: 0
C46: Unused amounts reversed during the period
B47: TOPEX0308B | C47: Opex component | E47: 0
B48: TOPEX0309B | C48: Capex component | E48: 0
B49: TOPEX0310B | C49: Other component | E49: 0
C50: The increase during the period in the discounted amount arising from the passage of time and the effect of any change in the discount rate
B51: TOPEX0311B | C51: Opex component | E51: 64964.59467
B52: TOPEX0312B | C52: Capex component | E52: 50575.71973
B53: TOPEX0313B | C53: Other component | E53: 0
B54: TOPEX0314B | C54: Closing balance (carrying amount at the end of the period) | E54: 30974079.96
B55: TOPEX03C | C55: Dividends
C56: Provision for Dividends declared by the Board of Directors
B57: TOPEX0301C | C57: Opening balance (the carrying amount at the beginning of the period) | E57: 147571325.1
C58: Additional provisions made in the period, including increases to existing provisions
B59: TOPEX0302C | C59: Opex component | E59: 1123116034
B60: TOPEX0303C | C60: Capex component | E60: 0
B61: TOPEX0304C | C61: Other component | E61: 0
C62: Amounts used (that is, incurred and charged against the provision) during the period
B63: TOPEX0305C | C63: Opex component | E63: -147571325.1
B64: TOPEX0306C | C64: Capex component | E64: 0
B65: TOPEX0307C | C65: Other component | E65: 0
C66: Unused amounts reversed during the period
B67: TOPEX0308C | C67: Opex component | E67: 0
B68: TOPEX0309C | C68: Capex component | E68: 0
B69: TOPEX0310C | C69: Other component | E69: 0
C70: The increase during the period in the discounted amount arising from the passage of time and the effect of any change in the discount rate
B71: TOPEX0311C | C71: Opex component | E71: 0
B72: TOPEX0312C | C72: Capex component | E72: 0
B73: TOPEX0313C | C73: Other component | E73: 0
B74: TOPEX0314C | C74: Closing balance (carrying amount at the end of the period) | E74: 1123116034
B75: TOPEX03D | C75: Provision name
C76: Brief description of provision
B77: TOPEX0301D | C77: Opening balance (the carrying amount at the beginning of the period)
C78: Additional provisions made in the period, including increases to existing provisions
B79: TOPEX0302D | C79: Opex component
B80: TOPEX0303D | C80: Capex component
B81: TOPEX0304D | C81: Other component
C82: Amounts used (that is, incurred and charged against the provision) during the period
B83: TOPEX0305D | C83: Opex component
B84: TOPEX0306D | C84: Capex component
B85: TOPEX0307D | C85: Other component
C86: Unused amounts reversed during the period
B87: TOPEX0308D | C87: Opex component
B88: TOPEX0309D | C88: Capex component
B89: TOPEX0310D | C89: Other component
C90: The increase during the period in the discounted amount arising from the passage of time and the effect of any change in the discount rate
B91: TOPEX0311D | C91: Opex component
B92: TOPEX0312D | C92: Capex component
B93: TOPEX0313D | C93: Other component
B94: TOPEX0314D | C94: Closing balance (carrying amount at the end of the period)
B95: TOPEX03E | C95: Provision name
C96: Brief description of provision
B97: TOPEX0301E | C97: Opening balance (the carrying amount at the beginning of the period)
C98: Additional provisions made in the period, including increases to existing provisions
B99: TOPEX0302E | C99: Opex component
B100: TOPEX0303E | C100: Capex component
B101: TOPEX0304E | C101: Other component
C102: Amounts used (that is, incurred and charged against the provision) during the period
B103: TOPEX0305E | C103: Opex component
B104: TOPEX0306E | C104: Capex component
B105: TOPEX0307E | C105: Other component
C106: Unused amounts reversed during the period
B107: TOPEX0308E | C107: Opex component
B108: TOPEX0309E | C108: Capex component
B109: TOPEX0310E | C109: Other component
C110: The increase during the period in the discounted amount arising from the passage of time and the effect of any change in the discount rate
B111: TOPEX0311E | C111: Opex component
B112: TOPEX0312E | C112: Capex component
B113: TOPEX0313E | C113: Other component
B114: TOPEX0314E | C114: Closing balance (carrying amount at the end of the period)
B115: TOPEX03F | C115: Provision name
C116: Brief description of provision
B117: TOPEX0301F | C117: Opening balance (the carrying amount at the beginning of the period)
C118: Additional provisions made in the period, including increases to existing provisions
B119: TOPEX0302F | C119: Opex component
B120: TOPEX0303F | C120: Capex component
B121: TOPEX0304F | C121: Other component
C122: Amounts used (that is, incurred and charged against the provision) during the period
B123: TOPEX0305F | C123: Opex component
B124: TOPEX0306F | C124: Capex component
B125: TOPEX0307F | C125: Other component
C126: Unused amounts reversed during the period
B127: TOPEX0308F | C127: Opex component
B128: TOPEX0309F | C128: Capex component
B129: TOPEX0310F | C129: Other component
C130: The increase during the period in the discounted amount arising from the passage of time and the effect of any change in the discount rate
B131: TOPEX0311F | C131: Opex component
B132: TOPEX0312F | C132: Capex component
B133: TOPEX0313F | C133: Other component
B134: TOPEX0314F | C134: Closing balance (carrying amount at the end of the period)
B135: TOPEX03G | C135: Provision name
C136: Brief description of provision
B137: TOPEX0301G | C137: Opening balance (the carrying amount at the beginning of the period)
C138: Additional provisions made in the period, including increases to existing provisions
B139: TOPEX0302G | C139: Opex component
B140: TOPEX0303G | C140: Capex component
B141: TOPEX0304G | C141: Other component
C142: Amounts used (that is, incurred and charged against the provision) during the period
B143: TOPEX0305G | C143: Opex component
B144: TOPEX0306G | C144: Capex component
B145: TOPEX0307G | C145: Other component
C146: Unused amounts reversed during the period
B147: TOPEX0308G | C147: Opex component
B148: TOPEX0309G | C148: Capex component
B149: TOPEX0310G | C149: Other component
C150: The increase during the period in the discounted amount arising from the passage of time and the effect of any change in the discount rate
B151: TOPEX0311G | C151: Opex component
B152: TOPEX0312G | C152: Capex component
B153: TOPEX0313G | C153: Other component
B154: TOPEX0314G | C154: Closing balance (carrying amount at the end of the period)
B155: TOPEX03H | C155: Provision name
C156: Brief description of provision
B157: TOPEX0301H | C157: Opening balance (the carrying amount at the beginning of the period)
C158: Additional provisions made in the period, including increases to existing provisions
B159: TOPEX0302H | C159: Opex component
B160: TOPEX0303H | C160: Capex component
B161: TOPEX0304H | C161: Other component
C162: Amounts used (that is, incurred and charged against the provision) during the period
B163: TOPEX0305H | C163: Opex component
B164: TOPEX0306H | C164: Capex component
B165: TOPEX0307H | C165: Other component
C166: Unused amounts reversed during the period
B167: TOPEX0308H | C167: Opex component
B168: TOPEX0309H | C168: Capex component
B169: TOPEX0310H | C169: Other component
C170: The increase during the period in the discounted amount arising from the passage of time and the effect of any change in the discount rate
B171: TOPEX0311H | C171: Opex component
B172: TOPEX0312H | C172: Capex component
B173: TOPEX0313H | C173: Other component
B174: TOPEX0314H | C174: Closing balance (carrying amount at the end of the period)
B175: TOPEX03I | C175: Provision name
C176: Brief description of provision
B177: TOPEX0301I | C177: Opening balance (the carrying amount at the beginning of the period)
C178: Additional provisions made in the period, including increases to existing provisions
B179: TOPEX0302I | C179: Opex component
B180: TOPEX0303I | C180: Capex component
B181: TOPEX0304I | C181: Other component
C182: Amounts used (that is, incurred and charged against the provision) during the period
B183: TOPEX0305I | C183: Opex component
B184: TOPEX0306I | C184: Capex component
B185: TOPEX0307I | C185: Other component
C186: Unused amounts reversed during the period
B187: TOPEX0308I | C187: Opex component
B188: TOPEX0309I | C188: Capex component
B189: TOPEX0310I | C189: Other component
C190: The increase during the period in the discounted amount arising from the passage of time and the effect of any change in the discount rate
B191: TOPEX0311I | C191: Opex component
B192: TOPEX0312I | C192: Capex component
B193: TOPEX0313I | C193: Other component
B194: TOPEX0314I | C194: Closing balance (carrying amount at the end of the period)
B195: TOPEX03J | C195: Provision name
C196: Brief description of provision
B197: TOPEX0301J | C197: Opening balance (the carrying amount at the beginning of the period)
C198: Additional provisions made in the period, including increases to existing provisions
B199: TOPEX0302J | C199: Opex component
B200: TOPEX0303J | C200: Capex component
B201: TOPEX0304J | C201: Other component
C202: Amounts used (that is, incurred and charged against the provision) during the period
B203: TOPEX0305J | C203: Opex component
B204: TOPEX0306J | C204: Capex component
... 170 more rows

Sheet 3.3 Assets (RAB)
C1: REGULATORY REPORTING STATEMENT
C2: =dms_TradingName -> Australian Transmission Co.
C3: =CONCATENATE("Benchmarking RIN response ",CRY) -> Benchmarking RIN response 2014-15
C4: 3.3 ASSETS
E7: Actual ($0's)
E8: =CRY -> 2014-15
C10: TABLE 3.3.1 - REGULATORY ASSET BASE VALUES
C11: For total asset base:
A12: ET_RAB3310_00001 | B12: TRAB0101 | C12: Opening value | E12: 6569026126
A13: ET_RAB3310_00002 | B13: TRAB0102 | C13: Inflation addition | E13: 87368047.48
A14: ET_RAB3310_00003 | B14: TRAB0103 | C14: Straight line depreciation | E14: -261726286.5
A15: ET_RAB3310_00004 | B15: TRAB0104 | C15: Regulatory depreciation | E15: =SUM(E14+E13) -> -174358239
A16: ET_RAB3310_00005 | B16: TRAB0105 | C16: Actual additions (recognised in RAB) | E16: 245700209.1
A17: ET_RAB3310_00006 | B17: TRAB0106 | C17: Disposals | E17: -1367869.343
A18: ET_RAB3310_00007 | B18: TRAB0107 | C18: Closing value | D18: $0's | E18: =SUM(E12+E13+E14+E16+E17) -> 6639000227
C21: TABLE 3.3.2 - ASSET VALUE ROLL FORWARD
C22: For overhead transmission assets:
A23: ET_RAB3321_00001 | B23: TRAB0201 | C23: Opening value | E23: 3393401070
A24: ET_RAB3321_00002 | B24: TRAB0202 | C24: Inflation addition | E24: 45132234.23
A25: ET_RAB3321_00003 | B25: TRAB0203 | C25: Straight line depreciation | E25: -111435995.2
A26: ET_RAB3321_00004 | B26: TRAB0204 | C26: Regulatory depreciation | E26: =SUM(E25+E24) -> -66303760.99
A27: ET_RAB3321_00005 | B27: TRAB0205 | C27: Actual additions (recognised in RAB) | E27: 34536352.48
A28: ET_RAB3321_00006 | B28: TRAB0206 | C28: Disposals | E28: 0
A29: ET_RAB3321_00007 | B29: TRAB0207 | C29: Closing value | D29: $0's | E29: =SUM(E23+E24+E25+E27+E28) -> 3361633661
C30: For underground transmission assets:
A31: ET_RAB3322_00001 | B31: TRAB0301 | C31: Opening value | E31: 48708714.55
A32: ET_RAB3322_00002 | B32: TRAB0302 | C32: Inflation addition | E32: 647825.9035
A33: ET_RAB3322_00003 | B33: TRAB0303 | C33: Straight line depreciation | E33: -2041967.052
A34: ET_RAB3322_00004 | B34: TRAB0304 | C34: Regulatory depreciation | E34: =SUM(E33+E32) -> -1394141.148
A35: ET_RAB3322_00005 | B35: TRAB0305 | C35: Actual additions (recognised in RAB) | E35: 0
A36: ET_RAB3322_00006 | B36: TRAB0306 | C36: Disposals | E36: 0
A37: ET_RAB3322_00007 | B37: TRAB0307 | C37: Closing value | D37: $0's | E37: =SUM(E31+E32+E33+E35+E36) -> 47314573.4
C38: For transmission switchyards, substations
A39: ET_RAB3323_00001 | B39: TRAB0401 | C39: Opening value | E39: 2422218684
A40: ET_RAB3323_00002 | B40: TRAB0402 | C40: Inflation addition | E40: 32221309.03
A41: ET_RAB3323_00003 | B41: TRAB0403 | C41: Straight line depreciation | E41: -112832328.4
A42: ET_RAB3323_00004 | B42: TRAB0404 | C42: Regulatory depreciation | E42: =SUM(E41+E40) -> -80611019.34
A43: ET_RAB3323_00005 | B43: TRAB0405 | C43: Actual additions (recognised in RAB) | E43: 161063006.9
A44: ET_RAB3323_00006 | B44: TRAB0406 | C44: Disposals | E44: 0
A45: ET_RAB3323_00007 | B45: TRAB0407 | C45: Closing value | D45: $0's | E45: =SUM(E39+E40+E41+E43+E44) -> 2502670672
C46: For easements:
A47: ET_RAB3324_00001 | B47: TRAB0501 | C47: Opening value | E47: 418601904.9
A48: ET_RAB3324_00002 | B48: TRAB0502 | C48: Inflation addition | E48: 5521685.447
A49: ET_RAB3324_00003 | B49: TRAB0503 | C49: Straight line depreciation | E49: 0
A50: ET_RAB3324_00004 | B50: TRAB0504 | C50: Regulatory depreciation | E50: =SUM(E49+E48) -> 5521685.447
A51: ET_RAB3324_00005 | B51: TRAB0505 | C51: Actual additions (recognised in RAB) | E51: 3599895.29
A52: ET_RAB3324_00006 | B52: TRAB0506 | C52: Disposals | E52: -470768.681
A53: ET_RAB3324_00007 | B53: TRAB0507 | C53: Closing value | D53: $0's | E53: =SUM(E47+E48+E49+E51+E52) -> 427252716.9
C54: For “other” assets with long lives:
A55: ET_RAB3325_00001 | B55: TRAB0601 | C55: Opening value | E55: 215894244.4
A56: ET_RAB3325_00002 | B56: TRAB0602 | C56: Inflation addition | E56: 2911312.808
A57: ET_RAB3325_00003 | B57: TRAB0603 | C57: Straight line depreciation | E57: -13161046.59
A58: ET_RAB3325_00004 | B58: TRAB0604 | C58: Regulatory depreciation | E58: =SUM(E57+E56) -> -10249733.78
A59: ET_RAB3325_00005 | B59: TRAB0605 | C59: Actual additions (recognised in RAB) | E59: 37464601.31
A60: ET_RAB3325_00006 | B60: TRAB0606 | C60: Disposals | E60: -78896.13156
A61: ET_RAB3325_00007 | B61: TRAB0607 | C61: Closing value | D61: $0's | E61: =SUM(E55+E56+E57+E59+E60) -> 243030215.8
C62: For “other” assets with short lives:
A63: ET_RAB3326_00001 | B63: TRAB0701 | C63: Opening value | E63: 70201508.16
A64: ET_RAB3326_00002 | B64: TRAB0702 | C64: Inflation addition | E64: 933680.0585
A65: ET_RAB3326_00003 | B65: TRAB0703 | C65: Straight line depreciation | E65: -22254949.3
A66: ET_RAB3326_00004 | B66: TRAB0704 | C66: Regulatory depreciation | E66: =SUM(E65+E64) -> -21321269.24
A67: ET_RAB3326_00005 | B67: TRAB0705 | C67: Actual additions (recognised in RAB) | E67: 9036353.137
A68: ET_RAB3326_00006 | B68: TRAB0706 | C68: Disposals | E68: -818204.5305
A69: ET_RAB3326_00007 | B69: TRAB0707 | C69: Closing value | D69: $0's | E69: =SUM(E63+E64+E65+E67+E68) -> 57098387.52
C72: TABLE 3.3.3 - TOTAL DISAGGREGATED RAB ASSET VALUES
A73: ET_RAB3330_00001 | B73: TRAB0801 | C73: Overhead transmission assets (wires and towers/poles etc) | E73: 3377517366
A74: ET_RAB3330_00002 | B74: TRAB0802 | C74: Underground transmission assets (cables, ducts etc) | E74: 48011643.98
A75: ET_RAB3330_00003 | B75: TRAB0803 | C75: Substations, switchyards, Transformers etc with transmission function | E75: 2462444678
A76: ET_RAB3330_00004 | B76: TRAB0804 | C76: Easements | E76: 422927310.9
A77: ET_RAB3330_00005 | B77: TRAB0805 | C77: Other assets with long lives (please specify) | E77: 229462230.1
A78: ET_RAB3330_00006 | B78: TRAB0806 | C78: Other assets with short lives (please specify) | D78: $0's | E78: 63649947.84
C81: TABLE 3.3.4 - ASSET LIVES | E81: Service Life (Years)
C82: 3.3.4.1 Asset Lives – estimated service life of new assets | E82: =CRY -> 2014-15
A83: ET_RAB3341_00001 | B83: TRAB0901 | C83: Overhead transmission assets | E83: 49.67699836
A84: ET_RAB3341_00002 | B84: TRAB0902 | C84: Underground transmission assets | E84: 45
A85: ET_RAB3341_00003 | B85: TRAB0903 | C85: Switchyard, substation and transformer assets | E85: 34.87476515
A86: ET_RAB3341_00004 | B86: TRAB0904 | C86: “Other” assets with long lives | E86: 28.57510037
A87: ET_RAB3341_00005 | B87: TRAB0905 | C87: “Other assets with short lives | E87: 5.658220305
C89: 3.3.4.2 Asset Lives – estimated residual service life
A90: ET_RAB3342_00001 | B90: TRAB1001 | C90: Overhead transmission assets | E90: 23.12377025
A91: ET_RAB3342_00002 | B91: TRAB1002 | C91: Underground transmission assets | E91: 25.32733149
A92: ET_RAB3342_00003 | B92: TRAB1003 | C92: Switchyard, substation and transformer assets | E92: 21.06540084
A93: ET_RAB3342_00004 | B93: TRAB1004 | C93: Other assets with long lives | E93: 22.38788601
A94: ET_RAB3342_00005 | B94: TRAB1005 | C94: Other assets with short lives | E94: 3.684558706

Sheet 3.4 Operational data
C1: REGULATORY REPORTING STATEMENT
C2: =dms_TradingName -> Australian Transmission Co.
C3: =CONCATENATE("Benchmarking RIN response ",CRY) -> Benchmarking RIN response 2014-15
C4: 3.4 OPERATIONAL DATA
E8: Actual
E9: =CRY -> 2014-15
D10: Units
C11: TABLE 3.4.1 - ENERGY DELIVERY
C12: Energy Grouping by Downstream Connection type
A13: ET_OPD3410_00001 | B13: TOPED0101 | C13: To Other connected transmission networks | D13: GWh | E13: 6105.352
A14: ET_OPD3410_00002 | B14: TOPED0102 | C14: To Distribution networks | D14: GWh | E14: 33652.15933
A15: ET_OPD3410_00004 | B15: TOPED0103 | C15: To Directly connected end–users (330 kV) | D15: GWh | E15: 0
A16: ET_OPD3410_00005 | B16: TOPED0104 | C16: To Directly connected end–users (275 kV) | D16: GWh | E16: 6091.477
A17: ET_OPD3410_00006 | B17: TOPED0105 | C17: To Directly connected end–users (220 kV) | D17: GWh | E17: 0
A18: ET_OPD3410_00007 | B18: TOPED0106 | C18: To Directly connected end–users (132 kV) | D18: GWh | E18: 7039.816
A19: ET_OPD3410_00008 | B19: TOPED0107 | C19: To Directly connected end–users (110 kV) | D19: GWh | E19: 0
A20: ET_OPD3410_00009 | B20: TOPED0108 | C20: To Directly connected end–users (44 kV) | D20: GWh | E20: 0
A21: ET_OPD3410_00010 | B21: TOPED0109 | C21: To Directly connected end–users (33 kV) | D21: GWh | E21: 0
A22: ET_OPD3410_00011 | B22: TOPED0110 | C22: To Directly connected end–users (22 kV) | D22: GWh | E22: 0
A23: ET_OPD3410_00012 | B23: TOPED0111 | C23: To Directly connected end–users (11 kV) | D23: GWh | E23: 0
A24: ET_OPD3410_00013 | B24: TOPED0112 | C24: To Directly connected end–users (6.6 kV) | D24: GWh | E24: 0
A25: ET_OPD3410_00014 | B25: TOPED0113 | C25: Pumping and Power Station Auxillaries | D25: GWh | E25: 198.7591
B26: TOPED01 | C26: Total energy transported | D26: GWh | E26: =SUM(E13:E25) -> 53087.56343
C29: TABLE 3.4.2 - CONNECTION POINTS
C30: Number of entry points at each transmission voltage level
A31: ET_OPD3421_00001 | B31: TOPCP0101 | C31: 500kV | D31: number | E31: 0
A32: ET_OPD3421_00002 | B32: TOPCP0102 | C32: 330kV | D32: number | E32: 1
A33: ET_OPD3421_00003 | B33: TOPCP0103 | C33: 275kV | D33: number | E33: 12.5
A34: ET_OPD3421_00004 | B34: TOPCP0104 | C34: 220kV | D34: number | E34: 0
A35: ET_OPD3421_00005 | B35: TOPCP0105 | C35: 132 kV | D35: number | E35: 10.5
A36: ET_OPD3421_00006 | B36: TOPCP0106 | C36: 110kV | D36: number | E36: 1
A37: ET_OPD3421_00007 | B37: TOPCP0107 | C37: 66 kV | D37: number | E37: 0
A38: ET_OPD3421_00008 | B38: TOPCP0108 | C38: 33 kV | D38: number | E38: 0
A39: ET_OPD3421_00009 | B39: TOPCP0109 | C39: 22 kV | D39: number | E39: 0
A40: ET_OPD3421_00010 | B40: TOPCP0110 | C40: 11 kV | D40: number | E40: 0
A41: ET_OPD3421_00010 | B41: TOPCP0111 | C41: 6.6 kV | D41: number | E41: 0
C43: Number of exit points at each transmission voltage level
A44: ET_OPD3422_00001 | B44: TOPCP0201 | C44: 500kV | D44: number | E44: 0
A45: ET_OPD3422_00002 | B45: TOPCP0202 | C45: 330kV | D45: number | E45: 1
A46: ET_OPD3422_00003 | B46: TOPCP0203 | C46: 275kV | D46: number | E46: 3.5
A47: ET_OPD3422_00004 | B47: TOPCP0204 | C47: 220kV | D47: number | E47: 0
A48: ET_OPD3422_00005 | B48: TOPCP0205 | C48: 132 kV | D48: number | E48: 49.5
A49: ET_OPD3422_00006 | B49: TOPCP0206 | C49: 110kV | D49: number | E49: 17.5
A50: ET_OPD3422_00007 | B50: TOPCP0207 | C50: 66 kV | D50: number | E50: 22.5
A51: ET_OPD3422_00008 | B51: TOPCP0208 | C51: 44 kV | D51: number | E51: 0
A52: ET_OPD3422_00009 | B52: TOPCP0209 | C52: 33kV | D52: number | E52: 14
A53: ET_OPD3422_00010 | B53: TOPCP0210 | C53: 22kV | D53: number | E53: 7
A54: ET_OPD3422_00011 | B54: TOPCP0211 | C54: 11kV | D54: number | E54: 4
A55: ET_OPD3422_00012 | B55: TOPCP0212 | C55: 6.6kV | D55: number | E55: 0
C58: TABLE 3.4.3 - SYSTEM DEMAND
C59: Table 3.4.3.1 Annual system maximum demand characteristics – MW measure
A60: ET_OPD3431_00001 | B60: TOPSD0101 | C60: Transmission System coincident maximum demand | D60: MW | E60: 8105.0588
A61: ET_OPD3431_00002 | B61: TOPSD0102 | C61: Transmission System coincident weather adjusted maximum demand 10% POE | D61: MW | E61: 8407.76
A62: ET_OPD3431_00003 | B62: TOPSD0103 | C62: Transmission System coincident weather adjusted maximum demand 50% POE | D62: MW | E62: 7863.135
A63: ET_OPD3431_00004 | B63: TOPSD0104 | C63: Transmission System non-coincident summated maximum demand | D63: MW | E63: 11413.174
A64: ET_OPD3431_00005 | B64: TOPSD0105 | C64: Transmission System non-coincident weather adjusted summated maximum demand 10% POE | D64: MW | E64: 11862.593
A65: ET_OPD3431_00006 | B65: TOPSD0106 | C65: Transmission System non-coincident weather adjusted summated maximum demand 50% POE | D65: MW | E65: 11194.901
C67: Table 3.4.3.2 Annual system maximum demand characteristics – MVA measure
A68: ET_OPD3432_00001 | B68: TOPSD0201 | C68: Transmission System coincident maximum demand | D68: MVA | E68: 8628.28987
A69: ET_OPD3432_00002 | B69: TOPSD0202 | C69: Transmission System coincident weather adjusted maximum demand 10% POE | D69: MVA | E69: 8940.559
A70: ET_OPD3432_00003 | B70: TOPSD0203 | C70: Transmission System coincident weather adjusted maximum demand 50% POE | D70: MVA | E70: 8378.72
A71: ET_OPD3432_00004 | B71: TOPSD0204 | C71: Transmission System non-coincident summated maximum demand | D71: MVA | E71: 11832.312
A72: ET_OPD3432_00005 | B72: TOPSD0205 | C72: Transmission System non-coincident weather adjusted summated maximum demand 10% POE | D72: MVA | E72: 12273.818
A73: ET_OPD3432_00006 | B73: TOPSD0206 | C73: Transmission System non-coincident weather adjusted summated maximum demand 50% POE | D73: MVA | E73: 11589.096
C75: Table 3.4.3.3 Power factor
C76: Power factor conversion between MVA and MW
A77: ET_OPD3433_00001 | B77: TOPSD0301 | C77: Average overall network power factor conversion between MVA and MW | D77: Factor | E77: 0.991
A78: ET_OPD3433_00002 | B78: TOPSD0302 | C78: Average power factor conversion for 500 kV lines | D78: Factor | E78: 0
A79: ET_OPD3433_00003 | B79: TOPSD0303 | C79: Average power factor conversion for 330 kV lines | D79: Factor | E79: 0.959
A80: ET_OPD3433_00004 | B80: TOPSD0304 | C80: Average power factor conversion for 275 kV lines | D80: Factor | E80: 0.955
A81: ET_OPD3433_00005 | B81: TOPSD0305 | C81: Average power factor conversion for 220 kV lines | D81: Factor | E81: 0
A82: ET_OPD3433_00006 | B82: TOPSD0306 | C82: Average power factor conversion for 132 kV lines | D82: Factor | E82: 0.99999
A83: ET_OPD3433_00007 | B83: TOPSD0307 | C83: Average power factor conversion for 110 kV lines | D83: Factor | E83: 0.986
A84: ET_OPD3433_00008 | B84: TOPSD0308 | C84: Average power factor conversion for 88 kV lines | D84: Factor | E84: 0
A85: ET_OPD3433_00009 | B85: TOPSD0309 | C85: Average power factor conversion for 66 kV lines | D85: Factor | E85: 0.962
A86: ET_OPD3433_00010 | B86: TOPSD0310 | C86: Average power factor conversion for 33 kV lines | D86: Factor | E86: 0.998
A87: ET_OPD3433_00011 | B87: TOPSD0311 | C87: Average power factor conversion for 22 kV lines | D87: Factor | E87: 0.998
A88: ET_OPD3433_00011 | B88: TOPSD0311 | C88: Average power factor conversion for 11 kV lines | D88: Factor | E88: 0.973
B89: TOPSD0312 | C89: Average power factor conversion for 6.6 kV lines | D89: Factor | E89: 0

Sheet 3.5 Physical assets
C1: REGULATORY REPORTING STATEMENT
C2: =dms_TradingName -> Australian Transmission Co.
C3: =CONCATENATE("Benchmarking RIN response ",CRY) -> Benchmarking RIN response 2014-15
C4: 3.5 PHYSICAL ASSETS
E7: Actual
E8: =CRY -> 2014-15
D9: Unit
C10: TABLE 3.5.1 - TRANSMISSION SYSTEM CAPACITIES
C11: Table 3.5.1.1 Overhead network length of circuit at each voltage
A12: ET_PHA3511_00001 | B12: TPA0101 | C12: 500 kV | D12: km | E12: 0
A13: ET_PHA3511_00002 | B13: TPA0102 | C13: 330 kV | D13: km | E13: 604
A14: ET_PHA3511_00003 | B14: TPA0103 | C14: 275 kV | D14: km | E14: 9367
A15: ET_PHA3511_00004 | B15: TPA0104 | C15: 220 kV | D15: km | E15: 0
A16: ET_PHA3511_00005 | B16: TPA0105 | C16: 132 kV | D16: km | E16: 4368
A17: ET_PHA3511_00006 | B17: TPA0106 | C17: 110 kV | D17: km | E17: 393
A18: ET_PHA3511_00007 | B18: TPA0107 | C18: 88 kV | D18: km | E18: 0
A19: ET_PHA3511_00008 | B19: TPA0108 | C19: 66 kV | D19: km | E19: 1
A20: ET_PHA3511_00009 | B20: TPA0109 | C20: 33 kV | D20: km | E20: 0
A21: ET_PHA3511_00009 | B21: TPA0109 | C21: 22 kV | D21: km | E21: 0
A22: ET_PHA3511_00009 | B22: TPA0109 | C22: 11 kV | D22: km | E22: 0
B23: TPA01 | C23: Total overhead circuit kilometres | D23: km | E23: =SUM(E12:E22) -> 14733
C25: Table 3.5.1.2 Underground cable circuit length at each voltage
A26: ET_PHA3512_00001 | B26: TPA0201 | C26: 500 kV | D26: km | E26: 0
A27: ET_PHA3512_00002 | B27: TPA0202 | C27: 330 kV | D27: km | E27: 0
A28: ET_PHA3512_00003 | B28: TPA0203 | C28: 275 kV | D28: km | E28: 9.4
A29: ET_PHA3512_00004 | B29: TPA0204 | C29: 220 kV | D29: km | E29: 0
A30: ET_PHA3512_00005 | B30: TPA0205 | C30: 132 kV | D30: km | E30: 3.2
A31: ET_PHA3512_00006 | B31: TPA0206 | C31: 110 kV | D31: km | E31: 7.6
A32: ET_PHA3511_00007 | B32: TPA0207 | C32: 88 kV | D32: km | E32: 0
A33: ET_PHA3512_00007 | B33: TPA0208 | C33: 66 kV | D33: km | E33: 1.3
A34: ET_PHA3512_00008 | B34: TPA0209 | C34: 33 kV | D34: km | E34: 0
A35: ET_PHA3512_00007 | B35: TPA0210 | C35: 22 kV | D35: km | E35: 0
A36: ET_PHA3512_00008 | B36: TPA0211 | C36: 11 kV | D36: km | E36: 0
B37: TPA02 | C37: Total underground circuit kilometres | D37: km | E37: =SUM(E26:E36) -> 21.5
B39: TPA0301 | C39: Table 3.5.1.3 Estimated overhead network weighted average MVA capacity by voltage class
A40: ET_PHA3513_00001 | B40: TPA0302 | C40: 500 kV | D40: MVA | E40: 0
A41: ET_PHA3513_00002 | B41: TPA0303 | C41: 330 kV | D41: MVA | E41: 1237.5
A42: ET_PHA3513_00003 | B42: TPA0304 | C42: 275 kV | D42: MVA | E42: 837.9
A43: ET_PHA3513_00004 | B43: TPA0305 | C43: 220 kV | D43: MVA | E43: 0
A44: ET_PHA3513_00005 | B44: TPA0306 | C44: 132 kV | D44: MVA | E44: 139.6
A45: ET_PHA3513_00006 | B45: TPA0307 | C45: 110 kV | D45: MVA | E45: 158.8
A46: ET_PHA3513_00007 | B46: TPA0308 | C46: 88 kV | D46: MVA | E46: 0
A47: ET_PHA3513_00008 | B47: TPA0309 | C47: 66 kV | D47: MVA | E47: 57
A48: ET_PHA3513_00009 | B48: TPA0310 | C48: 33 kV | D48: MVA | E48: 0
A49: ET_PHA3513_00008 | B49: TPA0311 | C49: 22 kV | D49: MVA | E49: 0
A50: ET_PHA3513_00009 | B50: TPA0312 | C50: 11 kV | D50: MVA | E50: 0
C52: Table 3.5.1.4 Estimated underground network weighted average MVA capacity by voltage class
A53: ET_PHA3514_00001 | B53: TPA0401 | C53: 500 kV | D53: MVA | E53: 0
A54: ET_PHA3514_00002 | B54: TPA0402 | C54: 330 kV | D54: MVA | E54: 0
A55: ET_PHA3514_00003 | B55: TPA0403 | C55: 275 kV | D55: MVA | E55: 568.9
A56: ET_PHA3514_00004 | B56: TPA0404 | C56: 220 kV | D56: MVA | E56: 0
A57: ET_PHA3514_00005 | B57: TPA0405 | C57: 132 kV | D57: MVA | E57: 207.9
A58: ET_PHA3514_00006 | B58: TPA0406 | C58: 110 kV | D58: MVA | E58: 200.8
A59: ET_PHA3514_00007 | B59: TPA0407 | C59: 88 kV | D59: MVA | E59: 0
A60: ET_PHA3514_00006 | B60: TPA0408 | C60: 66 kV | D60: MVA | E60: 57
A61: ET_PHA3514_00007 | B61: TPA0409 | C61: 33 kV | D61: MVA | E61: 0
A62: ET_PHA3514_00008 | B62: TPA0410 | C62: 22 kV | D62: MVA | E62: 0
B63: TPA0411 | C63: 11 kV | E63: 0
C65: Table 3.5.1.5 Installed transmission system transformer capacity
A66: ET_PHA3515_00001 | B66: TPA0501 | C66: Transmission substations (eg 500 kV to 330 kV) | D66: MVA | E66: 9929
A67: ET_PHA3515_00002 | B67: TPA0502 | C67: Terminal points to DNSP systems | D67: MVA | E67: 23477
A68: ET_PHA3515_00003 | B68: TPA0503 | C68: Transformer capacity for directly connected end–users owned by the TNSP | D68: MVA | E68: 2197
A69: ET_PHA3515_00004 | B69: TPA0504 | C69: Transformer capacity for directly connected end–users owned by the end–user | D69: MVA | E69: 3393
A70: ET_PHA3515_00005 | B70: TPA0505 | C70: Interconnector capacity | D70: MVA | E70: 0
A71: ET_PHA3515_00010 | B71: TPA0506 | C71: Other | D71: MVA | E71: 3097
C73: Table 3.5.1.6 Cold spare capacity
A74: ET_PHA3516_00001 | B74: TPA06 | C74: Cold spare capacity included in Table 3.5.1.5 | D74: MVA | E74: 2975

Sheet 3.6 Quality of services
C1: REGULATORY REPORTING STATEMENT
C2: =dms_TradingName -> Australian Transmission Co.
C3: =CONCATENATE("Benchmarking RIN response ",CRY) -> Benchmarking RIN response 2014-15
C4: 3.6 QUALITY OF SERVICE DATA
E7: Actual
E8: =CONCATENATE("Calendar Year ", dms_RYE-1) -> Calendar Year 2014
D9: Unit
C10: TABLE 3.6.1 - SERVICE COMPONENT
C11: Table 3.6.1.1 Service Parameter 1 – Average Circuit outage rate
A12: ET_QOS3611_00001 | B12: TQS0101 | C12: Lines outage rate - fault | D12: % | E12: 0.1959459459
A13: ET_QOS3611_00002 | B13: TQS0102 | C13: Number of Lines fault outages | D13: number | E13: 58
A14: ET_QOS3611_00003 | B14: TQS0103 | C14: Number of defined Lines | D14: number | E14: 296
A15: ET_QOS3611_00004 | B15: TQS0104 | C15: Transformers outage rate - fault | D15: % | E15: 0.1941176471
A16: ET_QOS3611_00005 | B16: TQS0105 | C16: Number of Transformer fault outages | D16: number | E16: 33
A17: ET_QOS3611_00006 | B17: TQS0106 | C17: Number of defined Transformers | D17: number | E17: 170
A18: ET_QOS3611_00007 | B18: TQS0107 | C18: Reactive plant outage rate - fault | D18: % | E18: 0.2907801418
A19: ET_QOS3611_00008 | B19: TQS0108 | C19: Number of Reactive plant fault outages | D19: number | E19: 41
A20: ET_QOS3611_00009 | B20: TQS0109 | C20: Number of defined Reactive plant | D20: number | E20: 141
A21: ET_QOS3611_00010 | B21: TQS0110 | C21: Lines outage rate – forced outage | D21: % | E21: 0.222972973
A22: ET_QOS3611_00011 | B22: TQS0111 | C22: Number of Lines forced outages | D22: number | E22: 66
A23: ET_QOS3611_00012 | B23: TQS0112 | C23: Transformer outage rate – forced outage | D23: % | E23: 18.82352941
A24: ET_QOS3611_00013 | B24: TQS0113 | C24: Number of Transformers forced outages | D24: number | E24: 32
A25: ET_QOS3611_00014 | B25: TQS0114 | C25: Reactive plant outage rate – forced outage | D25: % | E25: 0.3191489362
A26: ET_QOS3611_00015 | B26: TQS0115 | C26: Number of Reactive plant forced outages | D26: number | E26: 45
C28: Table 3.6.1.2 Service Parameter 2 – Loss of supply event frequency – number in ranges specified
A29: ET_QOS3612_00001 | B29: TQS0116 | C29: Number of events greater than 0.05 system minutes per annum (X) | D29: number
A30: ET_QOS3612_00002 | B30: TQS0117 | C30: Number of events greater than 0.1 system minutes per annum (X) | D30: number | E30: 3
A31: ET_QOS3612_00003 | B31: TQS0118 | C31: Number of events greater than 0.2 system minutes per annum (X) | D31: number
A32: ET_QOS3612_00004 | B32: TQS0119 | C32: Number of events greater than 0.25 system minutes per annum (X) | D32: number
A33: ET_QOS3612_00005 | B33: TQS0120 | C33: Number of events greater than 0.30 system minutes per annum (X) | D33: number
A34: ET_QOS3612_00006 | B34: TQS0121 | C34: Number of events greater than 0.5 system minutes per annum (X) | D34: number
A35: ET_QOS3612_00007 | B35: TQS0122 | C35: Number of events greater than 0.75 system minutes per annum (X) | D35: number
A36: ET_QOS3612_00008 | B36: TQS0123 | C36: Number of events greater than 1.0 system minutes per annum (X) | D36: number
A37: ET_QOS3612_00009 | B37: TQS0124 | C37: Number of events greater than 0.05 system minutes per annum (Y) | D37: number
A38: ET_QOS3612_00010 | B38: TQS0125 | C38: Number of events greater than 0.1 system minutes per annum (Y) | D38: number
A39: ET_QOS3612_00011 | B39: TQS0126 | C39: Number of events greater than 0.2 system minutes per annum (Y) | D39: number
A40: ET_QOS3612_00012 | B40: TQS0127 | C40: Number of events greater than 0.25 system minutes per annum (Y) | D40: number
A41: ET_QOS3612_00013 | B41: TQS0128 | C41: Number of events greater than 0.30 system minutes per annum (Y) | D41: number
A42: ET_QOS3612_00014 | B42: TQS0129 | C42: Number of events greater than 0.5 system minutes per annum (Y) | D42: number
A43: ET_QOS3612_00015 | B43: TQS0130 | C43: Number of events greater than 0.75 system minutes per annum (Y) | D43: number | E43: 0
A44: ET_QOS3612_00016 | B44: TQS0131 | C44: Number of events greater than 1.0 system minutes per annum (Y) | D44: number
C46: Table 3.6.1.3 Service Parameter 3 – Average outage duration
A47: ET_QOS3613_00001 | B47: TQS0118 | C47: Average outage duration | D47: minutes | E47: 115.971
C49: Table 3.6.1.4 System Parameter 4 – Proper operation of equipment – number of failure events
A50: ET_QOS3614_00001 | B50: TQS0119 | C50: Failure of protection system | D50: number | E50: 16
A51: ET_QOS3614_00002 | B51: TQS0120 | C51: Material failure of Supervisory Control and Data Acquisition (SCADA) system | D51: number | E51: 0
A52: ET_QOS3614_00003 | B52: TQS0121 | C52: Incorrect operational isolation of primary or secondary equipment | D52: number | E52: 10
C55: TABLE 3.6.2 - MARKET IMPACT COMPONENT
A56: ET_QOS3620_00001 | B56: TQS02 | C56: Market Impact Parameter | D56: Number of dispatch intervals | E56: 3941
C59: TABLE 3.6.3 - SYSTEM LOSSES
A60: ET_QOS3630_00001 | B60: TQS03 | C60: System losses | D60: % | E60: 0.02851

Sheet 3.7 Operating environment
C1: REGULATORY REPORTING STATEMENT
C2: =dms_TradingName -> Australian Transmission Co.
C3: =CONCATENATE("Benchmarking RIN response ",CRY) -> Benchmarking RIN response 2014-15
C4: 3.7 OPERATING ENVIRONMENT FACTORS
E7: Actual
E8: =CRY -> 2014-15
D9: Unit
B10: TEF01 | C10: TABLE 3.7.1 - TERRAIN FACTORS
A11: ET_OEF3710_00001 | B11: TEF0101 | C11: Total number of vegetation maintenance spans | D11: Number of spans | E11: 10833
A12: ET_OEF3710_00002 | B12: TEF0102 | C12: Average vegetation maintenance span cycle | D12: Years | E12: 2.608
A13: ET_OEF3710_00003 | B13: TEF0103 | C13: Average number of trees per vegetation maintenance span | D13: Trees | E13: 576
A14: ET_OEF3710_00004 | B14: TEF0104 | C14: Average number of defects per vegetation maintenance span | D14: Defects | E14: 0.02794
A15: ET_OEF3710_00005 | B15: TEF0105 | C15: Tropical proportion | D15: Number of spans | E15: 7327
A16: ET_OEF3710_00006 | B16: TEF0106 | C16: Standard vehicle access | D16: km | E16: 8019
A17: ET_OEF3710_00007 | B17: TEF0107 | C17: Altitude | D17: km | E17: 239.5
A18: ET_OEF3710_00008 | B18: TEF0108 | C18: Bushfire risk | D18: Number of spans | E18: 3220
B20: TEF02 | C20: TABLE 3.7.2 - NETWORK CHARACTERISTICS
A21: ET_OEF3720_00001 | B21: TEF0201 | C21: Route line length | D21: km | E21: 9698
A22: ET_OEF3720_00002 | B22: TEF0202 | C22: Variability of dispatch | D22: % | E22: 0.059
A23: ET_OEF3720_00003 | B23: TEF0203 | C23: Concentrated load distance | D23: km | E23: 565.4
A24: ET_OEF3720_00004 | B24: TEF0204 | C24: Total number of spans | D24: number | E24: 24096

Sheet Unlocked worksheet
